[Event "Titled Tuesday Blitz September 27 Late 2022"]
[White "Averjanov, Alexey"]
[Black "Gabrielian, Artur"]
[WhiteFideId "14109867"]
[BlackFideId "4131002"]
[WhiteElo "2672"]
[BlackElo "2467"]
[Result "1-0"]
[Round "08"]
[TimeControl "180+1"]
[Date "2022.09.27"]
[WhiteClock "0:00:18"]
[BlackClock "0:00:06"]

1. d4 {[%clk 0:03:00]}  Nf6 {[%clk 0:02:59]} 2. c4 {[%clk 0:03:01]}  c5 {[%clk 0:02:59]} 3. d5 {[%clk 0:03:01]}  e6 {[%clk 0:02:59]} 4. Nc3 {[%clk 0:03:00]}  exd5 {[%clk 0:03:00]} 5. cxd5 {[%clk 0:03:01]}  d6 {[%clk 0:03:01]} 6. Nf3 {[%clk 0:03:02]}  g6 {[%clk 0:03:01]} 7. Nd2 {[%clk 0:03:02]}  Nbd7 {[%clk 0:02:57]} 8. g3 {[%clk 0:03:02]}  Bg7 {[%clk 0:02:57]} 9. Bg2 {[%clk 0:03:02]}  O-O {[%clk 0:02:57]} 10. O-O {[%clk 0:03:02]}  Re8 {[%clk 0:02:58]} 11. h3 {[%clk 0:03:02]}  a6 {[%clk 0:02:56]} 12. a4 {[%clk 0:03:02]}  Rb8 {[%clk 0:02:56]} 13. a5 {[%clk 0:02:59]}  b5 {[%clk 0:02:55]} 14. axb6 {[%clk 0:02:59]}  Nxb6 {[%clk 0:02:54]} 15. Nb3 {[%clk 0:03:00]}  Nc4 {[%clk 0:02:52]} 16. Ra4 {[%clk 0:03:00]}  Nb6 {[%clk 0:02:52]} 17. Ra2 {[%clk 0:02:59]}  Nc4 {[%clk 0:02:51]} 18. Ra4 {[%clk 0:02:59]}  Nb6 {[%clk 0:02:51]} 19. Ra2 {[%clk 0:02:59]}  h5 {[%clk 0:02:35]} 20. Na5 {[%clk 0:02:54]}  Ra8 {[%clk 0:02:26]} 21. Nc6 {[%clk 0:02:54]}  Qc7 {[%clk 0:02:25]} 22. Bf4 {[%clk 0:02:49]}  Bb7 {[%clk 0:02:22]} 23. Qd3 {[%clk 0:02:37]}  Nfd7 {[%clk 0:02:22]} 24. Rfa1 {[%clk 0:02:31]}  Ne5 {[%clk 0:02:19]} 25. Bxe5 {[%clk 0:02:21]}  Bxe5 {[%clk 0:02:20]} 26. Nxe5 {[%clk 0:02:17]}  Rxe5 {[%clk 0:02:20]} 27. e4 {[%clk 0:02:16]}  h4 {[%clk 0:02:18]} 28. f4 {[%clk 0:02:14]}  Ree8 {[%clk 0:02:17]} 29. gxh4 {[%clk 0:02:11]}  Qe7 {[%clk 0:02:15]} 30. Qg3 {[%clk 0:02:06]}  Kh7 {[%clk 0:01:53]} 31. Kh2 {[%clk 0:02:03]}  Rh8 {[%clk 0:01:44]} 32. h5 {[%clk 0:01:56]}  Rag8 {[%clk 0:01:38]} 33. hxg6+ {[%clk 0:01:46]}  Rxg6 {[%clk 0:01:37]} 34. Qf3 {[%clk 0:01:45]}  Qh4 {[%clk 0:01:26]} 35. Rg1 {[%clk 0:01:33]}  Rhg8 {[%clk 0:01:26]} 36. e5 {[%clk 0:01:26]}  Nc4 {[%clk 0:01:20]} 37. b3 {[%clk 0:01:18]}  Rg3 {[%clk 0:00:37]} 38. Qe4+ {[%clk 0:01:18]}  Kh8 {[%clk 0:00:37]} 39. Qxc4 {[%clk 0:01:16]}  Bc8 {[%clk 0:00:31]} 40. f5 {[%clk 0:01:13]}  R8g4 {[%clk 0:00:23]} 41. Qf1 {[%clk 0:01:02]}  Rxc3 {[%clk 0:00:22]} 42. e6 {[%clk 0:00:57]}  Bb7 {[%clk 0:00:17]} 43. exf7 {[%clk 0:00:42]}  Kg7 {[%clk 0:00:16]} 44. Qf2 {[%clk 0:00:35]}  Rcg3 {[%clk 0:00:14]} 45. f6+ {[%clk 0:00:28]}  Kf8 {[%clk 0:00:13]} 46. Re2 {[%clk 0:00:25]}  Bxd5 {[%clk 0:00:08]} 47. Re8+ {[%clk 0:00:20]}  Kxf7 {[%clk 0:00:08]} 48. Bxd5+ {[%clk 0:00:20]}  Kxe8 {[%clk 0:00:09]} 49. Rxg3 {[%clk 0:00:19]}  Rxg3 {[%clk 0:00:06]} 50. f7+ {[%clk 0:00:18]}  Kf8 {[%clk 0:00:06]} 51. Qxg3 {[%clk 0:00:18]} 1-0


[Site "https://www.chess.com"]

[Event "Titled Tuesday Blitz September 27 Late 2022"]
[White "Besedes, Danilo"]
[Black "Mikhailov, Viacheslav"]
[WhiteFideId "946796"]
[BlackFideId "4187369"]
[WhiteElo "2352"]
[BlackElo "2381"]
[Result "1-0"]
[Round "08"]
[TimeControl "180+1"]
[Date "2022.09.27"]
[WhiteClock "0:00:14"]
[BlackClock "0:00:01"]

1. d4 {[%clk 0:03:00]}  c5 {[%clk 0:02:59]} 2. c3 {[%clk 0:03:00]}  cxd4 {[%clk 0:02:58]} 3. cxd4 {[%clk 0:03:00]}  Nf6 {[%clk 0:02:59]} 4. Nc3 {[%clk 0:02:59]}  g6 {[%clk 0:03:00]} 5. Nf3 {[%clk 0:02:58]}  Bg7 {[%clk 0:03:01]} 6. e4 {[%clk 0:02:58]}  O-O {[%clk 0:03:01]} 7. Be2 {[%clk 0:02:53]}  d6 {[%clk 0:03:01]} 8. h3 {[%clk 0:02:46]}  a6 {[%clk 0:03:00]} 9. a4 {[%clk 0:02:45]}  Nc6 {[%clk 0:03:00]} 10. O-O {[%clk 0:02:42]}  b6 {[%clk 0:02:58]} 11. Re1 {[%clk 0:02:41]}  Bb7 {[%clk 0:02:59]} 12. Bf1 {[%clk 0:02:39]}  e5 {[%clk 0:02:51]} 13. d5 {[%clk 0:02:38]}  Nd4 {[%clk 0:02:49]} 14. Nxd4 {[%clk 0:02:37]}  exd4 {[%clk 0:02:50]} 15. Nb1 {[%clk 0:02:09]}  Re8 {[%clk 0:02:50]} 16. Bd3 {[%clk 0:02:08]}  Nd7 {[%clk 0:02:43]} 17. Na3 {[%clk 0:01:56]}  Nc5 {[%clk 0:02:33]} 18. Nc4 {[%clk 0:01:51]}  Nxd3 {[%clk 0:02:27]} 19. Qxd3 {[%clk 0:01:51]}  Bxd5 {[%clk 0:02:28]} 20. Bf4 {[%clk 0:01:39]}  Bxc4 {[%clk 0:01:57]} 21. Qxc4 {[%clk 0:01:38]}  Be5 {[%clk 0:01:58]} 22. Bd2 {[%clk 0:01:29]}  Qd7 {[%clk 0:01:51]} 23. Rac1 {[%clk 0:01:28]}  Rec8 {[%clk 0:01:49]} 24. Qb3 {[%clk 0:01:22]}  b5 {[%clk 0:01:47]} 25. axb5 {[%clk 0:01:21]}  axb5 {[%clk 0:01:48]} 26. Qd5 {[%clk 0:01:16]}  Rxc1 {[%clk 0:01:08]} 27. Rxc1 {[%clk 0:01:12]}  Rc8 {[%clk 0:01:08]} 28. Rxc8+ {[%clk 0:01:08]}  Qxc8 {[%clk 0:01:09]} 29. Bh6 {[%clk 0:00:34]}  Qa6 {[%clk 0:00:19]} 30. f4 {[%clk 0:00:31]}  Bg7 {[%clk 0:00:14]} 31. Bxg7 {[%clk 0:00:31]}  Kxg7 {[%clk 0:00:15]} 32. Qxd4+ {[%clk 0:00:31]}  Kg8 {[%clk 0:00:15]} 33. Kh2 {[%clk 0:00:31]}  Qc6 {[%clk 0:00:15]} 34. e5 {[%clk 0:00:29]}  dxe5 {[%clk 0:00:14]} 35. Qxe5 {[%clk 0:00:28]}  Qd7 {[%clk 0:00:10]} 36. Qb8+ {[%clk 0:00:28]}  Kg7 {[%clk 0:00:10]} 37. Qe5+ {[%clk 0:00:28]}  f6 {[%clk 0:00:10]} 38. Qb8 {[%clk 0:00:28]}  h5 {[%clk 0:00:10]} 39. b4 {[%clk 0:00:26]}  h4 {[%clk 0:00:09]} 40. Qb6 {[%clk 0:00:26]}  Kf7 {[%clk 0:00:08]} 41. Qc5 {[%clk 0:00:23]}  Ke6 {[%clk 0:00:05]} 42. Kh1 {[%clk 0:00:19]}  Qd5 {[%clk 0:00:04]} 43. Qc8+ {[%clk 0:00:18]}  Qd7 {[%clk 0:00:02]} 44. Qc5 {[%clk 0:00:15]}  Qd5 {[%clk 0:00:01]} 45. Qf2 {[%clk 0:00:14]} 1-0


[Site "https://www.chess.com"]

[Event "Titled Tuesday Blitz September 27 Late 2022"]
[White "Boros, Denes"]
[Black "Dounis, Alexandros"]
[WhiteFideId "722340"]
[BlackFideId "4213238"]
[WhiteElo "2464"]
[BlackElo "2204"]
[Result "1/2-1/2"]
[Round "08"]
[TimeControl "180+1"]
[Date "2022.09.27"]
[WhiteClock "0:00:03"]
[BlackClock "0:00:03"]

1. b3 {[%clk 0:03:00]}  e5 {[%clk 0:02:56]} 2. Bb2 {[%clk 0:03:01]}  Nc6 {[%clk 0:02:54]} 3. Nf3 {[%clk 0:03:00]}  e4 {[%clk 0:02:52]} 4. Nd4 {[%clk 0:03:01]}  Nf6 {[%clk 0:02:51]} 5. e3 {[%clk 0:02:59]}  Bd6 {[%clk 0:02:47]} 6. Be2 {[%clk 0:02:54]}  O-O {[%clk 0:02:47]} 7. c4 {[%clk 0:02:52]}  Re8 {[%clk 0:02:45]} 8. Nxc6 {[%clk 0:02:47]}  dxc6 {[%clk 0:02:43]} 9. Nc3 {[%clk 0:02:47]}  Bf5 {[%clk 0:02:40]} 10. g4 {[%clk 0:02:45]}  Bg6 {[%clk 0:02:36]} 11. h4 {[%clk 0:02:44]}  h6 {[%clk 0:02:33]} 12. Qc2 {[%clk 0:02:38]}  Nd7 {[%clk 0:02:28]} 13. O-O-O {[%clk 0:02:31]}  Nc5 {[%clk 0:02:27]} 14. h5 {[%clk 0:02:20]}  Bh7 {[%clk 0:02:27]} 15. g5 {[%clk 0:02:20]}  Nd3+ {[%clk 0:02:08]} 16. Bxd3 {[%clk 0:02:14]}  exd3 {[%clk 0:02:09]} 17. Kb1 {[%clk 0:02:14]}  Qxg5 {[%clk 0:02:09]} 18. Qc1 {[%clk 0:02:13]}  Kh8 {[%clk 0:01:51]} 19. Rdg1 {[%clk 0:02:00]}  Qe7 {[%clk 0:01:49]} 20. Nd5 {[%clk 0:01:53]}  Qf8 {[%clk 0:01:47]} 21. Bxg7+ {[%clk 0:01:30]}  Qxg7 {[%clk 0:01:48]} 22. Rxg7 {[%clk 0:01:30]}  Kxg7 {[%clk 0:01:46]} 23. Rg1+ {[%clk 0:01:30]}  Kh8 {[%clk 0:01:43]} 24. Nf6 {[%clk 0:01:29]}  Re6 {[%clk 0:01:27]} 25. Nxh7 {[%clk 0:01:27]}  Kxh7 {[%clk 0:01:28]} 26. Qc3 {[%clk 0:01:25]}  Rg8 {[%clk 0:01:17]} 27. Qxd3+ {[%clk 0:01:23]}  Kh8 {[%clk 0:01:18]} 28. Rxg8+ {[%clk 0:01:16]}  Kxg8 {[%clk 0:01:18]} 29. c5 {[%clk 0:01:12]}  Bxc5 {[%clk 0:01:06]} 30. Qd8+ {[%clk 0:01:11]}  Bf8 {[%clk 0:01:03]} 31. Qxc7 {[%clk 0:01:10]}  b5 {[%clk 0:00:59]} 32. Qxa7 {[%clk 0:01:05]}  b4 {[%clk 0:01:00]} 33. f4 {[%clk 0:00:59]}  Rd6 {[%clk 0:00:57]} 34. Kc2 {[%clk 0:00:54]}  Rd5 {[%clk 0:00:57]} 35. d4 {[%clk 0:00:51]}  Rxh5 {[%clk 0:00:55]} 36. Qd7 {[%clk 0:00:51]}  Rh2+ {[%clk 0:00:47]} 37. Kd3 {[%clk 0:00:50]}  c5 {[%clk 0:00:42]} 38. d5 {[%clk 0:00:39]}  Rxa2 {[%clk 0:00:36]} 39. e4 {[%clk 0:00:39]}  Rb2 {[%clk 0:00:30]} 40. e5 {[%clk 0:00:36]}  Rxb3+ {[%clk 0:00:28]} 41. Ke4 {[%clk 0:00:36]}  Rg3 {[%clk 0:00:23]} 42. d6 {[%clk 0:00:25]}  b3 {[%clk 0:00:23]} 43. e6 {[%clk 0:00:20]}  fxe6 {[%clk 0:00:21]} 44. Qxe6+ {[%clk 0:00:21]}  Kh7 {[%clk 0:00:19]} 45. Qf7+ {[%clk 0:00:18]}  Bg7 {[%clk 0:00:18]} 46. Qf5+ {[%clk 0:00:11]}  Rg6 {[%clk 0:00:16]} 47. d7 {[%clk 0:00:11]}  b2 {[%clk 0:00:15]} 48. Kd5 {[%clk 0:00:11]}  Bf6 {[%clk 0:00:13]} 49. Kxc5 {[%clk 0:00:10]}  h5 {[%clk 0:00:09]} 50. Qxh5+ {[%clk 0:00:08]}  Kg7 {[%clk 0:00:08]} 51. Qd1 {[%clk 0:00:09]}  Be7+ {[%clk 0:00:05]} 52. Kb5 {[%clk 0:00:08]}  Rd6 {[%clk 0:00:04]} 53. Qg1+ {[%clk 0:00:07]}  Kf7 {[%clk 0:00:04]} 54. Qb1 {[%clk 0:00:03]}  Bf6 {[%clk 0:00:04]} 55. Kc5 {[%clk 0:00:03]}  Rxd7 {[%clk 0:00:04]} 56. Qh7+ {[%clk 0:00:03]}  Ke6 {[%clk 0:00:04]} 57. f5+ {[%clk 0:00:03]}  Ke5 {[%clk 0:00:03]} 58. Qxd7 {[%clk 0:00:03]}  b1=Q {[%clk 0:00:03]} 59. Qe6+ {[%clk 0:00:02]}  Kf4 {[%clk 0:00:02]} 60. Qxf6 {[%clk 0:00:03]}  Qxf5+ {[%clk 0:00:02]} 61. Qxf5+ {[%clk 0:00:03]}  Kxf5 {[%clk 0:00:03]} 1/2-1/2


[Site "https://www.chess.com"]

[Event "Titled Tuesday Blitz September 27 Late 2022"]
[White "Brodowski, Piotr"]
[Black "Beerdsen, Thomas"]
[WhiteFideId "1124480"]
[BlackFideId "1030108"]
[WhiteElo "2312"]
[BlackElo "2567"]
[Result "1-0"]
[Round "08"]
[TimeControl "180+1"]
[Date "2022.09.27"]
[WhiteClock "0:00:08"]
[BlackClock "0:00:31"]

1. d4 {[%clk 0:03:00]}  h6 {[%clk 0:02:53]} 2. e4 {[%clk 0:02:59]}  g5 {[%clk 0:02:54]} 3. Nc3 {[%clk 0:02:59]}  Bg7 {[%clk 0:02:55]} 4. h4 {[%clk 0:02:56]}  g4 {[%clk 0:02:54]} 5. h5 {[%clk 0:02:43]}  d5 {[%clk 0:02:46]} 6. Be3 {[%clk 0:02:33]}  dxe4 {[%clk 0:02:43]} 7. Nxe4 {[%clk 0:02:34]}  Nc6 {[%clk 0:02:40]} 8. Ne2 {[%clk 0:02:29]}  Nf6 {[%clk 0:02:36]} 9. Nxf6+ {[%clk 0:02:25]}  Bxf6 {[%clk 0:02:37]} 10. Qd2 {[%clk 0:02:25]}  Bf5 {[%clk 0:02:33]} 11. Ng3 {[%clk 0:02:19]}  Bh7 {[%clk 0:02:31]} 12. O-O-O {[%clk 0:02:13]}  Qd5 {[%clk 0:02:28]} 13. c4 {[%clk 0:02:09]}  Qd6 {[%clk 0:02:27]} 14. Bd3 {[%clk 0:01:14]}  Bxd3 {[%clk 0:02:23]} 15. Qxd3 {[%clk 0:01:14]}  O-O-O {[%clk 0:02:24]} 16. Ne4 {[%clk 0:01:03]}  Qe6 {[%clk 0:02:03]} 17. d5 {[%clk 0:01:00]}  Qe5 {[%clk 0:01:48]} 18. Nxf6 {[%clk 0:00:59]}  Qxf6 {[%clk 0:01:49]} 19. Qe4 {[%clk 0:00:47]}  Ne5 {[%clk 0:01:45]} 20. Kb1 {[%clk 0:00:41]}  Rhg8 {[%clk 0:01:34]} 21. Bd4 {[%clk 0:00:37]}  Rg5 {[%clk 0:01:33]} 22. Rhe1 {[%clk 0:00:37]}  g3 {[%clk 0:01:24]} 23. f4 {[%clk 0:00:31]}  Rxh5 {[%clk 0:01:22]} 24. fxe5 {[%clk 0:00:30]}  Qg5 {[%clk 0:01:21]} 25. Rf1 {[%clk 0:00:30]}  e6 {[%clk 0:01:19]} 26. Rxf7 {[%clk 0:00:28]}  Rh4 {[%clk 0:01:19]} 27. Qf3 {[%clk 0:00:20]}  Qg6+ {[%clk 0:01:20]} 28. Ka1 {[%clk 0:00:16]}  Qc2 {[%clk 0:01:19]} 29. Bc3 {[%clk 0:00:16]}  Rxc4 {[%clk 0:01:18]} 30. d6 {[%clk 0:00:16]}  a5 {[%clk 0:01:15]} 31. d7+ {[%clk 0:00:15]}  Kb8 {[%clk 0:01:16]} 32. Rf8 {[%clk 0:00:15]}  Rxf8 {[%clk 0:01:15]} 33. Qxf8+ {[%clk 0:00:15]}  Ka7 {[%clk 0:01:16]} 34. Qf3 {[%clk 0:00:15]}  Rf4 {[%clk 0:01:07]} 35. Qe3+ {[%clk 0:00:12]}  b6 {[%clk 0:01:07]} 36. Qd2 {[%clk 0:00:10]}  Qxd2 {[%clk 0:01:04]} 37. Bxd2 {[%clk 0:00:10]}  Rd4 {[%clk 0:01:04]} 38. Kb1 {[%clk 0:00:06]}  Rxd7 {[%clk 0:01:05]} 39. Kc2 {[%clk 0:00:06]}  h5 {[%clk 0:01:05]} 40. Rh1 {[%clk 0:00:06]}  Rf7 {[%clk 0:01:03]} 41. Rh3 {[%clk 0:00:04]}  h4 {[%clk 0:01:02]} 42. Be3 {[%clk 0:00:03]}  Rf5 {[%clk 0:01:00]} 43. Rxh4 {[%clk 0:00:02]}  Rxe5 {[%clk 0:01:01]} 44. Kd3 {[%clk 0:00:03]}  Rd5+ {[%clk 0:01:01]} 45. Ke2 {[%clk 0:00:03]}  Rb5 {[%clk 0:01:01]} 46. b3 {[%clk 0:00:04]}  Kb7 {[%clk 0:01:00]} 47. Rg4 {[%clk 0:00:04]}  e5 {[%clk 0:00:59]} 48. Rxg3 {[%clk 0:00:04]}  a4 {[%clk 0:01:00]} 49. Bd2 {[%clk 0:00:04]}  axb3 {[%clk 0:01:00]} 50. axb3 {[%clk 0:00:05]}  c5 {[%clk 0:01:00]} 51. Re3 {[%clk 0:00:05]}  Kc6 {[%clk 0:01:00]} 52. Kd1 {[%clk 0:00:05]}  Kd5 {[%clk 0:01:00]} 53. Kc2 {[%clk 0:00:05]}  e4 {[%clk 0:01:00]} 54. Kc3 {[%clk 0:00:04]}  Ra5 {[%clk 0:00:59]} 55. Kc2 {[%clk 0:00:05]}  Ra2+ {[%clk 0:00:59]} 56. Kd1 {[%clk 0:00:05]}  b5 {[%clk 0:01:00]} 57. g4 {[%clk 0:00:04]}  c4 {[%clk 0:00:58]} 58. bxc4+ {[%clk 0:00:04]}  bxc4 {[%clk 0:00:59]} 59. g5 {[%clk 0:00:05]}  Kd4 {[%clk 0:00:58]} 60. Rg3 {[%clk 0:00:04]}  Ra8 {[%clk 0:00:48]} 61. g6 {[%clk 0:00:05]}  Rg8 {[%clk 0:00:48]} 62. Bc3+ {[%clk 0:00:04]}  Kd5 {[%clk 0:00:48]} 63. g7 {[%clk 0:00:05]}  Ke6 {[%clk 0:00:47]} 64. Ke2 {[%clk 0:00:06]}  Kf5 {[%clk 0:00:47]} 65. Ke3 {[%clk 0:00:07]}  Ke6 {[%clk 0:00:45]} 66. Kxe4 {[%clk 0:00:07]}  Kf7 {[%clk 0:00:46]} 67. Kd5 {[%clk 0:00:07]}  Ke7 {[%clk 0:00:46]} 68. Kxc4 {[%clk 0:00:07]}  Rc8+ {[%clk 0:00:45]} 69. Kd3 {[%clk 0:00:08]}  Kf7 {[%clk 0:00:46]} 70. Bd4 {[%clk 0:00:09]}  Re8 {[%clk 0:00:45]} 71. Rh3 {[%clk 0:00:09]}  Re1 {[%clk 0:00:35]} 72. Rh8 {[%clk 0:00:08]}  Rd1+ {[%clk 0:00:35]} 73. Kc4 {[%clk 0:00:08]}  Rc1+ {[%clk 0:00:34]} 74. Bc3 {[%clk 0:00:08]}  Rg1 {[%clk 0:00:32]} 75. Rf8+ {[%clk 0:00:08]}  Ke7 {[%clk 0:00:32]} 76. g8=Q {[%clk 0:00:08]}  Rg4+ {[%clk 0:00:31]} 77. Qxg4 {[%clk 0:00:08]} 1-0


[Site "https://www.chess.com"]

[Event "Titled Tuesday Blitz September 27 Late 2022"]
[White "Carbone, Diego"]
[Black "Torres Boch, Jose Francisco"]
[WhiteFideId "3002179"]
[BlackFideId "2278383"]
[WhiteElo "2205"]
[BlackElo "2088"]
[Result "0-1"]
[Round "08"]
[TimeControl "180+1"]
[Date "2022.09.28"]
[WhiteClock "0:00:01"]
[BlackClock "0:00:13"]

1. d4 {[%clk 0:03:00]}  Nf6 {[%clk 0:02:58]} 2. c4 {[%clk 0:03:00]}  e6 {[%clk 0:02:58]} 3. Nc3 {[%clk 0:03:00]}  Bb4 {[%clk 0:02:56]} 4. Qc2 {[%clk 0:03:00]}  d5 {[%clk 0:02:56]} 5. a3 {[%clk 0:02:59]}  Bxc3+ {[%clk 0:02:40]} 6. Qxc3 {[%clk 0:03:00]}  O-O {[%clk 0:02:40]} 7. Bg5 {[%clk 0:02:59]}  h6 {[%clk 0:02:29]} 8. Bxf6 {[%clk 0:02:56]}  Qxf6 {[%clk 0:02:30]} 9. Nf3 {[%clk 0:02:56]}  dxc4 {[%clk 0:02:08]} 10. e4 {[%clk 0:02:36]}  b5 {[%clk 0:01:57]} 11. a4 {[%clk 0:02:31]}  c6 {[%clk 0:01:51]} 12. Be2 {[%clk 0:02:24]}  Nd7 {[%clk 0:01:47]} 13. e5 {[%clk 0:01:59]}  Qe7 {[%clk 0:01:41]} 14. O-O {[%clk 0:01:57]}  Nb6 {[%clk 0:01:38]} 15. a5 {[%clk 0:01:40]}  Nd5 {[%clk 0:01:36]} 16. Qc2 {[%clk 0:01:39]}  a6 {[%clk 0:01:36]} 17. Nd2 {[%clk 0:01:37]}  f5 {[%clk 0:01:20]} 18. exf6 {[%clk 0:01:25]}  Qxf6 {[%clk 0:01:19]} 19. Nf3 {[%clk 0:01:24]}  c5 {[%clk 0:01:10]} 20. Rad1 {[%clk 0:01:21]}  Bb7 {[%clk 0:01:05]} 21. Rfe1 {[%clk 0:01:18]}  cxd4 {[%clk 0:01:03]} 22. Rxd4 {[%clk 0:01:17]}  e5 {[%clk 0:01:01]} 23. Rg4 {[%clk 0:01:07]}  Nf4 {[%clk 0:00:57]} 24. Bf1 {[%clk 0:00:56]}  e4 {[%clk 0:00:51]} 25. Rxe4 {[%clk 0:00:27]}  Bxe4 {[%clk 0:00:50]} 26. Qxe4 {[%clk 0:00:28]}  Rae8 {[%clk 0:00:48]} 27. Qb7 {[%clk 0:00:23]}  Rf7 {[%clk 0:00:42]} 28. Qb6 {[%clk 0:00:20]}  Qxb6 {[%clk 0:00:41]} 29. axb6 {[%clk 0:00:21]}  Nd5 {[%clk 0:00:38]} 30. Nd4 {[%clk 0:00:16]}  Nxb6 {[%clk 0:00:37]} 31. h4 {[%clk 0:00:17]}  Rfe7 {[%clk 0:00:34]} 32. g3 {[%clk 0:00:17]}  Re4 {[%clk 0:00:34]} 33. Rxe4 {[%clk 0:00:14]}  Rxe4 {[%clk 0:00:35]} 34. Nc2 {[%clk 0:00:14]}  Na4 {[%clk 0:00:31]} 35. Nb4 {[%clk 0:00:13]}  a5 {[%clk 0:00:29]} 36. Nc6 {[%clk 0:00:13]}  Nxb2 {[%clk 0:00:27]} 37. Nxa5 {[%clk 0:00:13]}  b4 {[%clk 0:00:26]} 38. f3 {[%clk 0:00:12]}  Rd4 {[%clk 0:00:26]} 39. Kf2 {[%clk 0:00:13]}  c3 {[%clk 0:00:25]} 40. Ke3 {[%clk 0:00:13]}  Rd8 {[%clk 0:00:20]} 41. Nb3 {[%clk 0:00:12]}  Nd1+ {[%clk 0:00:18]} 42. Ke2 {[%clk 0:00:11]}  Nb2 {[%clk 0:00:17]} 43. Bh3 {[%clk 0:00:11]}  Nc4 {[%clk 0:00:17]} 44. Be6+ {[%clk 0:00:11]}  Kf8 {[%clk 0:00:17]} 45. Bxc4 {[%clk 0:00:12]}  Ke7 {[%clk 0:00:18]} 46. Bd3 {[%clk 0:00:10]}  Kd6 {[%clk 0:00:17]} 47. Nd4 {[%clk 0:00:10]}  Kd5 {[%clk 0:00:17]} 48. Ke3 {[%clk 0:00:08]}  Re8+ {[%clk 0:00:16]} 49. Be4+ {[%clk 0:00:09]}  Kc4 {[%clk 0:00:16]} 50. Nf5 {[%clk 0:00:04]}  Rd8 {[%clk 0:00:15]} 51. Nxg7 {[%clk 0:00:04]}  b3 {[%clk 0:00:16]} 52. Nf5 {[%clk 0:00:03]}  c2 {[%clk 0:00:16]} 53. Nxh6 {[%clk 0:00:01]}  c1=Q+ {[%clk 0:00:16]} 54. Ke2 {[%clk 0:00:02]}  Qxh6 {[%clk 0:00:16]} 55. h5 {[%clk 0:00:01]}  Qd2+ {[%clk 0:00:15]} 56. Kf1 {[%clk 0:00:01]}  b2 {[%clk 0:00:13]} 0-1


[Site "https://www.chess.com"]

[Event "Titled Tuesday Blitz September 27 Late 2022"]
[White "Carlsen, Magnus"]
[Black "Martinez Alcantara, Jose Eduardo"]
[WhiteFideId "1503014"]
[BlackFideId "3805662"]
[WhiteElo "2830"]
[BlackElo "2703"]
[Result "1-0"]
[Round "08"]
[TimeControl "180+1"]
[Date "2022.09.27"]
[WhiteClock "0:00:05"]
[BlackClock "0:00:03"]

1. d4 {[%clk 0:03:00]}  Nf6 {[%clk 0:02:59]} 2. Nf3 {[%clk 0:03:00]}  e6 {[%clk 0:03:00]} 3. Bg5 {[%clk 0:02:59]}  Be7 {[%clk 0:02:58]} 4. e3 {[%clk 0:02:57]}  b6 {[%clk 0:02:58]} 5. c4 {[%clk 0:02:56]}  Bb7 {[%clk 0:02:58]} 6. Nc3 {[%clk 0:02:54]}  O-O {[%clk 0:02:58]} 7. Bd3 {[%clk 0:02:53]}  d6 {[%clk 0:02:56]} 8. O-O {[%clk 0:02:50]}  Nbd7 {[%clk 0:02:56]} 9. e4 {[%clk 0:02:37]}  h6 {[%clk 0:02:55]} 10. Be3 {[%clk 0:02:36]}  e5 {[%clk 0:02:52]} 11. d5 {[%clk 0:02:36]}  a5 {[%clk 0:02:52]} 12. Nd2 {[%clk 0:02:30]}  Ne8 {[%clk 0:02:43]} 13. a3 {[%clk 0:02:28]}  Bg5 {[%clk 0:02:44]} 14. Qe2 {[%clk 0:02:26]}  a4 {[%clk 0:02:36]} 15. Bxg5 {[%clk 0:02:22]}  hxg5 {[%clk 0:02:20]} 16. Bc2 {[%clk 0:02:21]}  Nc5 {[%clk 0:02:21]} 17. g3 {[%clk 0:02:20]}  Bc8 {[%clk 0:02:20]} 18. Kg2 {[%clk 0:02:20]}  g6 {[%clk 0:02:10]} 19. Rh1 {[%clk 0:02:18]}  g4 {[%clk 0:01:59]} 20. Qe3 {[%clk 0:02:12]}  Kg7 {[%clk 0:01:56]} 21. f3 {[%clk 0:02:09]}  Nf6 {[%clk 0:01:51]} 22. Raf1 {[%clk 0:02:00]}  Rh8 {[%clk 0:01:39]} 23. fxg4 {[%clk 0:01:58]}  Nxg4 {[%clk 0:01:34]} 24. Qf3 {[%clk 0:01:56]}  Qe7 {[%clk 0:01:33]} 25. h3 {[%clk 0:01:56]}  Nf6 {[%clk 0:01:33]} 26. g4 {[%clk 0:01:47]}  Nh7 {[%clk 0:01:25]} 27. Qg3 {[%clk 0:01:39]}  Bd7 {[%clk 0:01:11]} 28. h4 {[%clk 0:01:39]}  Nf6 {[%clk 0:01:09]} 29. Bd1 {[%clk 0:01:38]}  Ng8 {[%clk 0:01:05]} 30. Rf2 {[%clk 0:01:37]}  Rf8 {[%clk 0:01:03]} 31. Be2 {[%clk 0:01:32]}  Rh7 {[%clk 0:01:01]} 32. Kf1 {[%clk 0:01:25]}  f6 {[%clk 0:01:01]} 33. Ke1 {[%clk 0:01:24]}  g5 {[%clk 0:01:02]} 34. Rfh2 {[%clk 0:01:14]}  Nh6 {[%clk 0:00:44]} 35. hxg5 {[%clk 0:01:00]}  fxg5 {[%clk 0:00:44]} 36. Nf1 {[%clk 0:00:59]}  Rfh8 {[%clk 0:00:42]} 37. Qh3 {[%clk 0:00:57]}  Qf6 {[%clk 0:00:30]} 38. Ng3 {[%clk 0:00:50]}  Kg8 {[%clk 0:00:26]} 39. Nh5 {[%clk 0:00:25]}  Qf8 {[%clk 0:00:26]} 40. Qe3 {[%clk 0:00:09]}  Qe7 {[%clk 0:00:26]} 41. Rf1 {[%clk 0:00:08]}  Rf7 {[%clk 0:00:23]} 42. Nf6+ {[%clk 0:00:07]}  Rxf6 {[%clk 0:00:18]} 43. Qxg5+ {[%clk 0:00:08]}  Kf7 {[%clk 0:00:19]} 44. Rxf6+ {[%clk 0:00:08]}  Qxf6 {[%clk 0:00:19]} 45. Rf2 {[%clk 0:00:08]}  Nf5 {[%clk 0:00:15]} 46. Qxf6+ {[%clk 0:00:08]}  Kxf6 {[%clk 0:00:16]} 47. exf5 {[%clk 0:00:09]}  Kg5 {[%clk 0:00:15]} 48. Kd2 {[%clk 0:00:08]}  Rh3 {[%clk 0:00:15]} 49. Rf1 {[%clk 0:00:05]}  Rh2 {[%clk 0:00:12]} 50. Ke3 {[%clk 0:00:04]}  Rh3+ {[%clk 0:00:13]} 51. Bf3 {[%clk 0:00:05]}  Rh2 {[%clk 0:00:11]} 52. Rf2 {[%clk 0:00:04]}  Rh3 {[%clk 0:00:12]} 53. Ne4+ {[%clk 0:00:04]}  Nxe4 {[%clk 0:00:12]} 54. Kxe4 {[%clk 0:00:05]}  Rh4 {[%clk 0:00:13]} 55. Ke3 {[%clk 0:00:04]}  Rh3 {[%clk 0:00:13]} 56. Rg2 {[%clk 0:00:04]}  c5 {[%clk 0:00:09]} 57. Kf2 {[%clk 0:00:04]}  b5 {[%clk 0:00:09]} 58. cxb5 {[%clk 0:00:04]}  Bxb5 {[%clk 0:00:10]} 59. Rg3 {[%clk 0:00:04]}  Rh8 {[%clk 0:00:10]} 60. Rg1 {[%clk 0:00:02]}  Bd3 {[%clk 0:00:06]} 61. Kg3 {[%clk 0:00:01]}  e4 {[%clk 0:00:03]} 62. Rh1 {[%clk 0:00:02]}  Rxh1 {[%clk 0:00:01]} 63. Bxh1 {[%clk 0:00:03]}  e3 {[%clk 0:00:01]} 64. Bf3 {[%clk 0:00:04]}  Bc4 {[%clk 0:00:02]} 65. Be4 {[%clk 0:00:03]}  e2 {[%clk 0:00:02]} 66. Kf2 {[%clk 0:00:04]}  Bb5 {[%clk 0:00:01]} 67. Bf3 {[%clk 0:00:04]}  Bc4 {[%clk 0:00:02]} 68. Bxe2 {[%clk 0:00:04]}  Bxd5 {[%clk 0:00:02]} 69. Bd1 {[%clk 0:00:05]}  Bc6 {[%clk 0:00:03]} 70. Ke3 {[%clk 0:00:06]}  d5 {[%clk 0:00:03]} 71. Kd3 {[%clk 0:00:05]}  Kf4 {[%clk 0:00:03]} 72. f6 {[%clk 0:00:05]}  Ke5 {[%clk 0:00:04]} 73. f7 {[%clk 0:00:05]}  Bb5+ {[%clk 0:00:03]} 74. Kd2 {[%clk 0:00:05]} 1-0


[Site "https://www.chess.com"]